bitfinex/quotes_SOLUSD_20250414
["timestamp","ask_amount","ask_price","bid_price","bid_amount"]
[1744641207957,0.03,132.33,132.32,7.5574]
[1744641208156,0.03,132.33,132.32,34.80718629]
[1744641208955,0.03,132.33,132.32,9.1977]
[1744641209368,0.03,132.33,132.32,34.80718629]
[1744641209771,0.03,132.33,132.32,9.1977]
[1744641209973,0.03,132.33,132.32,53.59899672]
[1744641210180,0.03,132.35,132.34,25.60948629]
[1744641211062,0.03,132.35,132.34,25.75164786]
[1744641211685,0.03,132.38,132.35,0.14216157]
[1744641211881,0.03,132.38,132.37,25.60948629]
[1744641212070,0.03,132.38,132.35,33.16518629]
[1744641212773,0.03,132.38,132.36,25.60948629]
[1744641212978,0.03,132.38,132.35,33.16518629]
[1744641213155,0.03,132.38,132.36,25.60948629]
[1744641213553,0.03,132.38,132.37,25.60948629]
[1744641214663,0.03,132.38,132.37,33.16398629]
[1744641215282,0.03,132.38,132.37,7.5545]
[1744641216086,0.03,132.38,132.37,33.16398629]
[1744641216257,0.0001,132.38,132.37,59.71799672]
[1744641216454,0.03,132.39,132.38,18.64964886]
[1744641216671,0.03,132.39,132.38,59.61313515]
[1744641216890,0.03,132.39,132.38,40.96348629]
[1744641217071,0.03,132.39,132.38,59.61313515]
[1744641217270,0.0001,132.39,132.38,60.18178143]
[1744641217485,7.2e-06,132.43,132.42,18.64964886]
[1744641217701,0.03,132.46,132.45,26.0]
[1744641217977,25.63948629,132.46,132.42,6.5621]
[1744641218285,25.60948629,132.43,132.41,1.5825]
[1744641218587,25.60948629,132.44,132.41,9.1342]
[1744641218927,25.60948629,132.43,132.41,1.5825]
[1744641219126,25.60948629,132.43,132.41,9.1347]
[1744641219341,25.60948629,132.43,132.38,33.43118629]
[1744641219993,25.60948629,132.44,132.39,33.16268629]
[1744641220319,25.60948629,132.43,132.39,7.5532]
[1744641220620,90.4795,132.46,132.39,7.5532]
[1744641220827,25.60948629,132.43,132.39,7.5532]
[1744641221215,82.93,132.46,132.39,7.5532]
[1744641221216,25.60948629,132.42,132.39,7.5532]
[1744641221589,7.5506,132.44,132.38,15.3756]
[1744641221795,25.60948629,132.43,132.38,40.98508629]
[1744641222020,25.60948629,132.44,132.39,25.60948629]
[1744641222391,25.60948629,132.44,132.38,34.2606]
[1744641222607,25.60948629,132.42,132.38,15.3756]
[1744641222935,25.60948629,132.41,132.38,15.3756]
[1744641223443,25.60948629,132.43,132.38,40.98508629]
[1744641223625,25.60948629,132.44,132.39,25.60948629]
[1744641224215,25.60948629,132.44,132.4,25.60948629]
[1744641224635,0.03,132.46,132.43,25.60948629]
[1744641224840,0.03,132.46,132.44,33.15998629]
[1744641225037,0.03,132.46,132.45,25.60948629]
[1744641225743,0.03,132.46,132.44,7.5505]
[1744641226452,25.60948629,132.45,132.39,7.5534]
[1744641226609,0.14216157,132.45,132.39,7.5534]
[1744641226944,25.60948629,132.44,132.39,52.04648629]
[1744641227154,0.03,132.46,132.41,25.60948629]
[1744641227445,0.03,132.46,132.42,26.0]
[1744641227613,25.60948629,132.45,132.42,26.0]
[1744641228126,25.60948629,132.45,132.42,33.5512]
[1744641228842,0.03,132.46,132.42,7.5512]
[1744641229040,25.60948629,132.45,132.42,7.5512]
[1744641229221,0.03,132.46,132.42,7.5512]
[1744641229622,25.63948629,132.46,132.42,7.5512]
[1744641229825,0.03,132.46,132.42,33.16068629]
[1744641230029,0.03,132.46,132.44,25.60948629]
[1744641230343,0.03,132.46,132.45,7.55]
[1744641230513,0.03,132.46,132.45,33.15948629]
[1744641231117,0.03,132.46,132.45,33.30164786]
[1744641232046,0.03,132.46,132.45,33.15948629]
[1744641232339,0.03,132.46,132.45,33.30164786]
[1744641232643,0.03,132.46,132.45,33.15948629]
[1744641236441,0.03,132.46,132.45,34.72348629]
[1744641236743,0.03,132.46,132.45,49.05454786]
[1744641237049,0.03,132.47,132.46,18.64964886]
[1744641237215,0.03,132.49,132.48,26.0]
[1744641237422,0.03,132.49,132.48,51.60948629]
[1744641238644,0.03,132.49,132.48,33.5483]
[1744641239065,0.03,132.49,132.48,59.29994786]
[1744641241268,0.03,132.49,132.45,15.7529]
[1744641241450,0.03,132.49,132.45,39.23731181]
[1744641241655,0.03,132.49,132.45,23.3027]
[1744641241970,0.03,132.49,132.45,39.23731181]
[1744641242149,0.03,132.49,132.46,15.93461181]
[1744641242350,0.03,132.49,132.47,15.93461181]
[1744641242655,15.96461181,132.49,132.45,27.564]
[1744641242966,0.03,132.49,132.46,15.93461181]
[1744641243137,0.03,132.49,132.48,51.64126441]
[1744641243336,0.03,132.49,132.48,70.1487517]
[1744641243554,0.03,132.49,132.48,102.20125454]
[1744641243886,0.03,132.49,132.48,58.19466441]
[1744641244237,0.03,132.49,132.48,26.0]
[1744641244437,0.03,132.49,132.46,7.78]
[1744641244638,25.52910284,132.49,132.46,7.78]
[1744641244866,25.49910284,132.47,132.41,34.8007]
[1744641245039,25.49910284,132.46,132.42,7.5517]
[1744641245243,82.9,132.48,132.42,7.5517]
[1744641245437,25.49910284,132.47,132.43,25.49910284]
[1744641245638,108.39910284,132.48,132.43,25.49910284]
[1744641245846,25.49910284,132.47,132.42,33.05080284]
[1744641246465,25.49910284,132.47,132.43,25.49910284]
[1744641246665,108.39910284,132.48,132.44,7.5505]
[1744641246858,25.52910284,132.49,132.44,33.04960284]
[1744641247056,25.49910284,132.48,132.44,33.04960284]
[1744641247243,25.49910284,132.45,132.41,1.6327]
[1744641247771,25.49910284,132.44,132.41,1.6327]
[1744641247958,25.49910284,132.43,132.39,7.78]
[1744641248268,25.49910284,132.41,132.39,7.78]
[1744641248475,25.49910284,132.4,132.37,9.2165]
[1744641248769,0.14216157,132.43,132.37,9.2165]
[1744641248956,25.49910284,132.4,132.37,9.2165]
[1744641249148,25.49910284,132.41,132.37,34.71560284]
[1744641249470,25.49910284,132.42,132.37,34.71560284]
[1744641249655,25.49910284,132.41,132.37,9.2165]
[1744641249970,25.49910284,132.41,132.37,34.71560284]
[1744641250339,25.49910284,132.42,132.38,25.49910284]
[1744641250667,25.49910284,132.42,132.38,33.05260284]
[1744641250967,25.49910284,132.42,132.38,7.5535]
[1744641251167,25.49910284,132.42,132.38,33.05260284]
[1744641251346,82.9,132.46,132.4,25.49910284]
[1744641251547,108.39910284,132.46,132.41,25.49910284]
[1744641251766,25.49910284,132.45,132.4,25.49910284]
[1744641252154,25.49910284,132.43,132.39,25.49910284]
[1744641252751,25.49910284,132.41,132.37,1.6621]
[1744641252939,25.49910284,132.4,132.37,1.6621]
[1744641254079,25.49910284,132.4,132.37,9.2165]
[1744641254446,7.5518,132.42,132.37,9.2165]
[1744641254764,90.59346157,132.43,132.37,9.2165]
[1744641254954,25.49910284,132.41,132.37,9.2165]
[1744641255359,24.99910284,132.42,132.37,34.71560284]
[1744641255557,25.49910284,132.4,132.37,9.2165]
[1744641255765,25.49910284,132.39,132.37,1.6621]
[1744641256075,25.49910284,132.39,132.37,9.2166]
[1744641256277,25.49910284,132.4,132.37,9.2166]
[1744641256659,7.5519,132.42,132.37,9.2166]
[1744641256951,25.49910284,132.41,132.37,9.2166]
[1744641257169,108.39910284,132.43,132.38,25.49910284]
[1744641257367,25.49910284,132.42,132.38,25.49910284]
[1744641257767,25.49910284,132.44,132.39,25.49910284]
[1744641257971,82.9,132.46,132.41,25.49910284]
[1744641258181,108.39910284,132.46,132.42,7.5517]
[1744641258363,82.9,132.46,132.42,33.05080284]
[1744641258566,90.62016157,132.49,132.43,25.49910284]
[1744641258765,108.42910284,132.49,132.44,25.49910284]
[1744641258980,0.03,132.49,132.46,25.49910284]
[1744641259182,0.03,132.49,132.47,25.49910284]
[1744641259473,0.03,132.49,132.45,0.14216157]
[1744641259474,0.03,132.49,132.48,25.49910284]
[1744641260049,0.03,132.49,132.48,33.04740284]
[1744641262465,0.03,132.49,132.47,7.5486]
[1744641262781,0.03,132.49,132.48,25.49910284]
[1744641263570,0.03,132.49,132.47,33.04770284]
[1744641264380,0.03,132.49,132.46,7.5492]
[1744641264683,0.03,132.49,132.47,25.49910284]
[1744641264874,0.03,132.49,132.48,25.49910284]
[1744641265177,0.03,132.49,132.47,25.49910284]
[1744641265553,25.52910284,132.49,132.46,7.5492]
[1744641265747,25.52910284,132.49,132.44,46.00880284]
[1744641265748,25.52910284,132.49,132.45,7.55]
[1744641265971,25.52910284,132.49,132.41,260.13034886]
[1744641265972,25.49910284,132.46,132.4,26.4349]
[1744641266183,115.94740284,132.48,132.41,25.49910284]
[1744641266184,25.49910284,132.45,132.41,25.49910284]
[1744641266654,25.49910284,132.45,132.4,33.05190284]
[1744641266859,25.49910284,132.44,132.4,7.5528]
[1744641267464,25.49910284,132.45,132.4,33.05190284]
[1744641268482,25.49910284,132.44,132.4,7.5528]
[1744641268683,25.49910284,132.43,132.39,9.1736]
[1744641269756,108.39910284,132.46,132.41,25.49910284]
[1744641270184,25.49910284,132.44,132.39,34.67270284]
[1744641271176,25.49910284,132.43,132.39,34.67270284]
[1744641271404,25.49910284,132.44,132.39,34.67270284]
[1744641272469,25.49910284,132.43,132.39,34.67270284]
[1744641274155,25.49910284,132.42,132.38,7.5539]
[1744641274574,25.49910284,132.42,132.38,33.05300284]
[1744641274990,25.49910284,132.44,132.39,25.49910284]
[1744641275498,25.49910284,132.43,132.39,25.49910284]
[1744641275882,25.49910284,132.43,132.4,7.5528]
[1744641276080,25.49910284,132.43,132.39,33.05220284]
[1744641276677,33.05030284,132.43,132.39,7.5531]
[1744641276978,25.49910284,132.43,132.39,33.05220284]
[1744641277806,25.49910284,132.44,132.39,33.05220284]
[1744641277990,82.9,132.45,132.4,25.49910284]
[1744641278305,115.94920284,132.45,132.41,7.5522]
[1744641278603,25.49910284,132.44,132.4,33.05160284]
[1744641280511,82.9,132.45,132.41,25.49910284]
[1744641280808,82.9,132.45,132.42,25.49910284]
[1744641281104,25.49910284,132.46,132.42,25.49910284]
[1744641281280,15.95189273,132.46,132.41,15.95189273]
[1744641281480,15.95189273,132.45,132.41,15.95189273]
[1744641282004,15.95189273,132.45,132.4,23.50439273]
[1744641282409,23.50209273,132.45,132.4,23.50439273]
[1744641282804,7.5502,132.45,132.4,23.50439273]
[1744641283003,23.50209273,132.45,132.4,23.50439273]
[1744641283187,15.95189273,132.44,132.4,23.50439273]
[1744641285117,15.95189273,132.44,132.4,7.5525]
[1744641285408,15.95189273,132.44,132.4,23.50439273]
[1744641286006,15.95189273,132.44,132.4,7.5525]
[1744641286308,15.95189273,132.41,132.37,22.55929273]
[1744641286495,15.95189273,132.41,132.37,6.6074]
[1744641286695,15.95189273,132.41,132.38,7.5538]
[1744641286895,15.95189273,132.42,132.38,7.5538]
[1744641288101,15.95189273,132.41,132.37,14.1617]
[1744641291194,15.95189273,132.38,132.36,0.063]
[1744641291398,15.95189273,132.37,132.36,0.063]
[1744641295593,0.28432314,132.35,132.33,0.063]
[1744641295788,98.9940543,132.34,132.33,0.063]
[1744641296922,82.9,132.34,132.33,0.063]
[1744641297104,98.85189273,132.34,132.33,0.063]
[1744641297615,106.40809273,132.34,132.33,0.063]
[1744641298123,106.83457744,132.34,132.33,0.063]
[1744641299114,23.93457744,132.34,132.33,0.063]
[1744641299498,23.6502543,132.34,132.33,0.063]
[1744641299816,15.95189273,132.34,132.33,0.063]
[1744641300014,23.93457744,132.34,132.33,0.063]
[1744641300719,42.72638787,132.34,132.31,0.063]
[1744641301019,61.17018787,132.32,132.31,0.063]
[1744641301218,68.72758787,132.32,132.31,0.063]
[1744641301730,49.93577744,132.32,132.31,0.063]
[1744641303215,42.7420543,132.36,132.31,0.063]
[1744641303427,15.95189273,132.32,132.31,0.063]
[1744641303721,15.95189273,132.35,132.31,0.063]
[1744641304599,98.85189273,132.34,132.31,0.063]
[1744641305120,15.95189273,132.32,132.31,0.063]
[1744641305491,23.79361587,132.32,132.31,0.063]
[1744641305717,49.93577744,132.32,132.31,0.063]
[1744641306601,84.6794806,132.32,132.31,0.063]
[1744641307008,44.933972,132.29,132.28,0.063]
[1744641307225,68.72928787,132.29,132.28,0.063]
[1744641307514,51.1220806,132.26,132.25,0.063]
[1744641307725,35.17018787,132.26,132.25,0.063]
[1744641308629,16.37837744,132.26,132.25,0.063]
[1744641309229,26.04053732,132.26,132.25,0.063]
[1744641309527,33.60133732,132.26,132.25,0.063]
[1744641310815,52.39314775,132.26,132.25,0.063]
[1744641311023,33.60133732,132.26,132.25,0.063]
[1744641311711,33.31701418,132.26,132.25,0.063]
[1744641311912,25.75621418,132.29,132.25,0.063]
[1744641312426,7.78,132.3,132.25,0.063]
[1744641312427,25.61405261,132.3,132.26,25.61405261]
[1744641312741,25.61405261,132.28,132.25,0.063]
[1744641312919,25.61405261,132.26,132.25,0.063]
[1744641313437,33.31701418,132.26,132.25,0.063]
[1744641315132,25.61405261,132.26,132.25,0.063]
[1744641315335,25.61405261,132.28,132.25,0.063]
[1744641315822,82.9,132.29,132.25,25.67705261]
[1744641316025,108.51405261,132.29,132.25,25.67705261]
[1744641316210,108.51405261,132.29,132.25,0.063]
[1744641316414,25.61405261,132.27,132.25,0.063]
[1744641317236,82.9,132.29,132.25,0.063]
[1744641317437,82.9,132.29,132.27,7.5602]
[1744641318230,108.65621418,132.32,132.27,40.88085261]
[1744641318433,82.9,132.32,132.27,40.88085261]
[1744641318734,82.9,132.32,132.29,25.61405261]
[1744641319534,82.9,132.32,132.29,33.17285261]
[1744641319911,82.9,132.32,132.29,7.5588]
[1744641320812,82.9,132.32,132.28,7.5594]
[1744641320813,108.51405261,132.32,132.28,7.5594]
[1744641321125,116.07145261,132.32,132.28,7.5594]
[1744641321330,25.61405261,132.31,132.28,7.5594]
[1744641321638,25.61405261,132.31,132.27,15.2666]
[1744641321847,25.61405261,132.31,132.27,40.88065261]
[1744641322238,82.9,132.32,132.28,25.61405261]
[1744641322432,108.51405261,132.32,132.28,25.61405261]
[1744641322730,108.51405261,132.32,132.27,40.88065261]
[1744641323106,82.9,132.32,132.28,25.61405261]
[1744641323531,82.9,132.32,132.29,7.5591]
[1744641324036,108.51405261,132.32,132.29,7.5591]
[1744641324236,82.9,132.32,132.29,7.5591]
[1744641324446,82.9,132.35,132.31,25.61405261]
[1744641324616,82.9,132.35,132.34,25.61405261]
[1744641324816,25.61405261,132.37,132.32,25.61405261]
[1744641325020,25.61405261,132.34,132.3,7.78]
[1744641325237,25.61405261,132.34,132.29,33.17315261]
[1744641325541,25.61405261,132.33,132.29,33.17315261]
[1744641325738,25.61405261,132.34,132.29,33.17315261]
[1744641326040,25.61405261,132.34,132.29,7.5591]
[1744641326241,25.61405261,132.34,132.29,33.17315261]
[1744641326936,7.69786157,132.35,132.29,33.17315261]
[1744641327115,25.61405261,132.34,132.29,33.17315261]
[1744641327637,25.61405261,132.35,132.3,25.61405261]
[1744641328017,25.61405261,132.34,132.3,25.61405261]
[1744641328447,25.61405261,132.34,132.29,33.17315261]
[1744641329329,90.4552,132.36,132.27,26.6069]
[1744641329330,15.98225056,132.33,132.28,23.54195056]
[1744641329724,15.98225056,132.34,132.29,15.98225056]
[1744641329931,16.12441213,132.34,132.29,15.98225056]
[1744641330321,15.98225056,132.33,132.28,42.44125056]
[1744641330746,0.14216157,132.34,132.28,42.44125056]
[1744641330747,15.98225056,132.32,132.28,26.459]
[1744641330946,15.98225056,132.31,132.28,7.5597]
[1744641331145,0.14216157,132.34,132.28,7.5597]
[1744641331146,82.9,132.33,132.28,7.5597]
[1744641331465,15.98225056,132.31,132.28,7.5597]
[1744641331747,15.98225056,132.32,132.28,7.5597]
[1744641332053,15.98225056,132.3,132.27,7.7066]
[1744641332218,15.98225056,132.29,132.27,1.5909]
[1744641332419,16.12441213,132.31,132.27,9.151]
[1744641332639,82.9,132.32,132.27,25.13325056]
[1744641332841,98.88225056,132.32,132.27,25.13325056]
[1744641333928,98.88225056,132.32,132.27,44.03395056]
[1744641334127,82.9,132.32,132.29,15.98225056]
[1744641334338,82.9,132.32,132.28,15.98225056]
[1744641335246,82.9,132.32,132.29,15.98225056]
[1744641335828,82.9,132.32,132.3,7.5585]
[1744641337150,82.9,132.32,132.31,6.0062]
[1744641337324,83.04216157,132.35,132.31,6.0062]
[1744641337928,82.9,132.35,132.31,21.98845056]
[1744641338322,98.88225056,132.35,132.31,6.0062]
[1744641339531,98.88225056,132.35,132.32,7.5574]
[1744641340531,98.88225056,132.35,132.31,13.564]
[1744641340725,15.98225056,132.34,132.31,13.564]
[1744641341642,98.88225056,132.35,132.31,13.564]
[1744641341832,15.98225056,132.34,132.31,13.564]
[1744641342561,82.9,132.35,132.31,29.54625056]
[1744641342857,0.03,132.39,132.34,15.98225056]
[1744641343030,0.03,132.39,132.38,15.98225056]
[1744641343232,0.03,132.39,132.34,6.488]
[1744641343426,15.98225056,132.37,132.35,7.5557]
[1744641343631,98.88225056,132.38,132.34,6.488]
[1744641344231,98.88225056,132.38,132.34,22.47025056]
[1744641344640,98.88225056,132.38,132.34,6.488]
[1744641345931,0.03,132.39,132.37,15.98225056]
[1744641346134,0.03,132.39,132.38,15.98225056]
[1744641347560,0.03,132.39,132.37,15.98225056]
[1744641348559,0.03,132.39,132.36,15.98225056]
[1744641350455,0.03,132.39,132.37,15.98225056]
[1744641350645,0.03,132.39,132.38,15.98225056]
[1744641350863,0.03,132.39,132.38,17.48895056]
[1744641351764,0.03,132.39,132.38,1.5067]
[1744641351947,0.03,132.39,132.38,17.48895056]
[1744641352544,0.03,132.39,132.38,1.5067]
[1744641354260,0.03,132.39,132.38,17.48895056]
[1744641354565,0.03,132.39,132.38,1.5067]
[1744641354860,0.03,132.39,132.36,15.98225056]
[1744641355163,15.98225056,132.38,132.35,1.5359]
[1744641355860,0.03,132.39,132.35,1.5359]
[1744641355861,16.01225056,132.39,132.35,1.5359]
[1744641356068,0.03,132.39,132.36,15.98225056]
[1744641357061,0.03,132.39,132.35,17.51815056]
[1744641357257,0.03,132.39,132.36,15.98225056]
[1744641359166,0.03,132.39,132.37,15.98225056]
[1744641361268,0.03,132.39,132.38,15.98225056]
[1744641361564,0.03,132.39,132.38,23.72225056]
[1744641361763,0.03,132.41,132.4,44.79181043]
[1744641361969,0.03,132.41,132.4,77.04063469]
[1744641362174,0.03,132.41,132.4,61.05838413]
[1744641362670,0.03,132.45,132.41,0.28432314]
[1744641362865,0.03,132.45,132.43,15.98225056]
[1744641363454,0.03,132.45,132.43,23.53335056]
[1744641363756,0.03,132.45,132.44,15.98225056]
[1744641363953,0.03,132.45,132.43,7.5511]
[1744641364157,0.03,132.45,132.41,7.5522]
[1744641364449,15.98225056,132.44,132.39,31.26205056]
[1744641364657,15.98225056,132.43,132.39,7.7267]
[1744641364861,15.98225056,132.4,132.38,7.74]
[1744641365168,15.98225056,132.39,132.36,1.5544]
[1744641365667,23.53565056,132.39,132.36,1.5544]
[1744641366166,15.98225056,132.39,132.36,1.5544]
[1744641366569,15.98225056,132.39,132.36,9.1094]
[1744641366770,98.88225056,132.42,132.37,15.98225056]
[1744641366944,82.9,132.42,132.38,15.98225056]
[1744641367149,15.98225056,132.43,132.36,9.1094]
[1744641367150,25.53235871,132.44,132.39,25.53235871]
[1744641367555,25.53235871,132.44,132.39,7.5534]
[1744641367556,25.53235871,132.43,132.39,7.5534]
[1744641368244,25.53235871,132.43,132.38,33.08605871]
[1744641368865,33.08335871,132.44,132.39,25.53235871]
[1744641369066,116.01265871,132.45,132.4,25.53235871]
[1744641369270,108.46235871,132.45,132.4,25.53235871]
[1744641369459,0.03,132.45,132.43,25.53235871]
[1744641369655,0.03,132.45,132.42,33.08365871]
[1744641370053,0.03,132.45,132.43,25.53235871]
[1744641370254,0.03,132.45,132.44,25.53235871]
[1744641370754,0.03,132.45,132.44,33.41452028]
[1744641371475,0.03,132.45,132.44,33.27235871]
[1744641372466,0.03,132.47,132.45,18.64964886]
[1744641372771,0.03,132.47,132.46,70.18200757]
[1744641373178,0.03,132.47,132.46,70.60849228]
[1744641373671,0.03,132.55,132.51,26.0]
[1744641373877,0.03,132.55,132.53,25.53235871]
[1744641374081,25.53235871,132.54,132.51,6.6116]
[1744641374248,25.56235871,132.55,132.5,25.53235871]
[1744641374449,25.56235871,132.55,132.51,33.07895871]
[1744641374648,25.56235871,132.55,132.51,7.5466]
[1744641375268,25.53235871,132.53,132.49,33.27235871]
[1744641375879,25.53235871,132.53,132.48,32.14395871]
[1744641376448,0.03,132.55,132.5,25.53235871]
[1744641376675,25.53235871,132.54,132.49,33.07985871]
[1744641377266,25.53235871,132.54,132.49,7.5475]
[1744641377463,25.56235871,132.55,132.5,25.53235871]
[1744641377667,25.56235871,132.55,132.51,25.53235871]
[1744641377872,0.03,132.55,132.52,25.53235871]
[1744641378473,0.03,132.55,132.53,7.5454]
[1744641379477,0.03,132.55,132.53,33.07775871]
[1744641379784,0.03,132.55,132.54,25.53235871]
[1744641380364,0.03,132.55,132.54,27.24972028]
[1744641380565,82.9,132.63,132.55,0.14216157]
[1744641380770,25.56235871,132.61,132.57,25.53235871]
[1744641381286,0.03,132.61,132.56,0.14216157]
[1744641381579,0.03,132.61,132.58,25.53235871]
[1744641381758,0.03,132.61,132.57,33.27235871]
[1744641382578,0.03,132.61,132.57,40.81505871]
[1744641382969,25.56235871,132.61,132.57,7.74]
[1744641383168,25.53235871,132.6,132.57,7.74]
[1744641383360,0.03,132.61,132.57,15.283]
[1744641383561,25.56235871,132.61,132.57,15.283]
[1744641383789,0.03,132.61,132.6,25.53235871]
[1744641383991,25.53235871,132.68,132.6,71.56108942]
[1744641384172,111.11277121,132.69,132.62,6.50906157]
[1744641384490,111.11277121,132.69,132.65,25.53235871]
[1744641384672,111.11277121,132.69,132.65,33.07075871]
[1744641384987,85.5804125,132.69,132.65,33.07075871]
[1744641385175,2.6804125,132.69,132.66,25.53235871]
[1744641385375,2.6804125,132.69,132.67,25.53235871]
[1744641386085,2.6804125,132.69,132.68,25.53235871]
[1744641386587,2.6804125,132.69,132.68,33.06925871]
[1744641386766,2.6804125,132.69,132.68,7.5369]
[1744641386974,2.6804125,132.69,132.67,15.2772]
[1744641387584,28.21277121,132.69,132.64,7.5392]
[1744641387783,2.6804125,132.69,132.66,25.53235871]
[1744641387986,2.6804125,132.69,132.65,25.53235871]
[1744641388161,28.21277121,132.69,132.64,7.5392]
[1744641388360,28.21277121,132.69,132.64,33.07155871]
[1744641388774,28.21277121,132.69,132.64,7.5392]
[1744641388983,28.21277121,132.69,132.64,33.07155871]
[1744641389681,28.21277121,132.69,132.65,25.53235871]
[1744641389682,2.6804125,132.69,132.65,25.53235871]
[1744641389991,2.6804125,132.69,132.64,7.5392]
[1744641390287,2.6804125,132.69,132.64,26.3872]
[1744641390468,2.6804125,132.69,132.67,25.53235871]
[1744641390787,2.6804125,132.69,132.68,7.5369]
[1744641390980,2.6804125,132.69,132.68,33.06925871]
[1744641392063,2.6804125,132.69,132.68,33.21142028]
[1744641392287,2.6804125,132.69,132.68,40.93142028]
[1744641392672,1.25e-05,132.69,132.68,65.89966914]
[1744641393173,1.25e-05,132.69,132.68,66.18399228]
[1744641394090,1.25e-05,132.69,132.68,65.89966914]
[1744641394289,1.25e-05,132.69,132.68,47.25002028]
[1744641394467,1.25e-05,132.69,132.68,65.89966914]
[1744641395992,1.25e-05,132.69,132.68,66.32615385]
[1744641396191,0.03,132.75,132.69,0.42648471]
[1744641396371,0.03,132.75,132.73,25.53235871]
[1744641396873,0.03,132.75,132.74,25.53235871]
[1744641397073,0.03,132.75,132.74,33.06585871]
[1744641397395,0.03,132.75,132.74,33.20802028]
[1744641397687,0.03,132.75,132.74,40.92802028]
[1744641397890,82.93,132.83,132.76,0.14216157]
[1744641398096,0.03,132.83,132.79,25.53235871]
[1744641398278,0.03,132.83,132.81,25.53235871]
[1744641398471,0.03,132.83,132.8,25.53235871]
[1744641398895,0.03,132.83,132.81,25.53235871]
[1744641399192,0.03,132.83,132.8,7.5301]
[1744641400478,0.03,132.83,132.82,25.53235871]
[1744641400663,0.03,132.83,132.81,0.14216157]
[1744641400867,0.03,132.83,132.82,25.53235871]
[1744641401067,0.03,132.83,132.81,0.14216157]
[1744641401374,0.03,132.83,132.81,25.53235871]
[1744641401901,0.03,132.83,132.8,25.67452028]
[1744641402398,0.03,132.83,132.81,7.5295]
[1744641402695,0.03,132.83,132.8,33.06215871]
[1744641402995,25.53235871,132.82,132.75,13.7854]
[1744641403180,25.53235871,132.82,132.77,25.53235871]
[1744641403379,25.53235871,132.81,132.76,33.06465871]
[1744641403593,0.03,132.83,132.76,33.06465871]
[1744641403801,25.53235871,132.8,132.76,33.06465871]
[1744641403994,25.53235871,132.81,132.76,33.06465871]
[1744641404495,25.53235871,132.8,132.75,25.53235871]
[1744641404702,6.5771,132.83,132.77,25.53235871]
[1744641404898,7.5585,132.83,132.74,34.0873]
[1744641405075,0.03,132.83,132.78,25.53235871]
[1744641405407,0.03,132.83,132.75,18.79181043]
[1744641405578,0.03,132.83,132.79,25.53235871]
[1744641405894,25.56235871,132.83,132.78,25.53235871]
[1744641406193,0.03,132.83,132.8,25.53235871]
[1744641406584,0.03,132.83,132.8,33.06205871]
[1744641406989,0.03,132.83,132.79,7.72]
[1744641407179,25.53235871,132.82,132.79,7.72]
[1744641407390,25.53235871,132.82,132.79,15.2506]
[1744641408078,25.53235871,132.8,132.76,25.53235871]
[1744641408270,0.03,132.83,132.79,25.53235871]
[1744641408499,25.56235871,132.83,132.78,25.53235871]
[1744641408866,25.53235871,132.81,132.77,25.53235871]
[1744641409077,25.53235871,132.81,132.76,33.06465871]
[1744641409482,0.03,132.83,132.77,25.53235871]
[1744641409684,25.53235871,132.82,132.77,25.53235871]
[1744641410087,0.03,132.83,132.78,25.53235871]
[1744641410392,0.03,132.83,132.8,25.53235871]
[1744641410573,0.03,132.83,132.81,7.5295]
[1744641410775,0.03,132.83,132.81,33.06185871]
[1744641410992,0.03,132.83,132.82,25.53235871]
[1744641411910,0.03,132.83,132.81,33.06185871]
[1744641412079,0.03,132.83,132.82,25.53235871]
[1744641412592,0.03,132.83,132.82,33.06125871]
[1744641413775,0.0001,132.83,132.82,52.13739228]
[1744641414079,0.0001,132.83,132.82,52.27955385]
[1744641414283,0.0001,132.83,132.82,77.81191256]
[1744641414510,0.0001,132.83,132.82,7.67106157]
[1744641414816,0.03,132.89,132.84,0.14216157]
[1744641414977,0.03,132.89,132.86,25.53235871]
[1744641415173,0.03,132.89,132.87,25.53235871]
[1744641415377,0.03,132.89,132.88,25.53235871]